{"text_format":"3","workbook":"xlsx","n_sheets":1,"sheets":["     校招     "],"not_rendered":{"defined_names":3},"read":"whole","date_system":"1900"}

{"sheet":"     校招     ","index":0,"n_rows":29,"n_cols":12,"rows_kept":29,"merged":[[0,0,0,1],[1,0,1,11],[2,0,2,2],[5,1,6,1],[7,1,8,1],[10,0,11,0],[10,1,14,1],[10,2,11,2],[10,3,11,3],[10,7,11,7],[10,8,11,8],[12,0,13,0],[12,2,13,2],[12,3,13,3],[12,7,13,7],[12,8,13,8],[17,1,18,1],[17,11,18,11],[20,1,21,1],[22,1,23,1],[22,11,23,11],[25,1,26,1],[27,9,27,10],[28,0,28,9]]}
["附件"]
["中国科协所属单位2024年度公开招聘应届高校毕业生岗位信息表（校招 ）"]
["单位：（盖章）"]
["序号","用人单位","岗位名称","岗位职责简介","招聘人数","学历  要求","学位  要求","专业要求","其他资格条件","生源类型","备注","联系电话"]
[{"$f":"ROW()-4","v":1},"中国科普研究所","科学素质研究室\n助理研究员","1.参与科学素质、数字素养调查的数据分析和评价；                                            \n2.参与调查研究方案设计和报告撰写；\n3.协调和推进调查研究工作进度。",1,"研究生","博士","教育学（0401）、社会学、理学、经济学、管理学","1.具有较强的数据分析能力；\n2.具有团队协作精神和较强的组织协调能力；\n3.认真细致，勤奋敬业，具有服务意识；\n4.具有社会调查实习经历或项目经验。","京外",null,"010-62103298"]
[{"$f":"ROW()-4","v":2},"中国科协学会服务中心","学会组织一处\n职员","1.负责收集统计全国学会基础信息；\n2.负责全国学会组织建设管理服务日常工作；\n3.参与全国学会内部治理监督管理工作；                                         4.参与全国学会内部治理课题研究。                                 ",1,"研究生","仅限\n硕士","统计学、管理科学与工程、公共管理学、信息资源管理、公共管理、工程管理","1.中共党员；\n2.具有较强的语言表达能力；\n3.具有较好的文字写作能力；\n4.具有良好的团队合作和沟通协调能力；\n5.熟悉各类办公软件。","京内",null,"010-62191182"]
[3,null,"科技服务处\n职员","1.参与全国学会科技经济融合工作调研；                                            2.参与全国学会产学融合组织的管理与进程督导；                                         3.参与全国学会在科技服务方面项目的管理与跟进；\n4.定期撰写项目进展报告及总结。",2,"研究生","仅限\n硕士","理论经济学、应用经济学、工商管理学、公共管理学、信息资源管理、新闻传播学、新闻与传播","1.中共党员；\n2.具有较好的文字写作能力；\n3.熟悉各类办公软件；                        \n4.具有良好的团队合作和沟通协调能力；                   5.能适应出差。","京外",null,"010-62191182"]
[4,"中国科协信息中心","联络协调处\n网站运维岗","1.参与中国科协门户网站及相关新媒体平台的运维工作；                                            2.参与中国科协政务信息系统运维、采编工作；                                         3.参与中国科协数字化转型相关平台的运维工作；\n4.参与中国科协信息化工作。  ",1,"大学本科及以上","学士及以上","本科：计算机类、电子信息工程、电子信息科学与技术\n研究生：计算机科学与技术、信息资源管理、软件工程、电子信息","1.中共党员；\n2.拥有网站建设、运维经验；\n3.熟悉HTML5、CSS3、JS，有前端开发经验；\n4.能适应夜间、节假日值班工作。","京内",null,"010-68587410"]
[5,null,"信息处\n数据安全岗","1.参与中国科协数据分析及安全管理工作；                                            \n2.制定中国科协信息化制度及标准规范；\n3.组织开展中国科协信息化工作调研； \n4.参与中国科协直属单位信息化项目数据管理工作；\n5.参与中国科协信息化指标评估工作；\n6.组织中国科协数字技术培训工作。",2,"研究生","仅限\n硕士","计算机科学与技术、信息资源管理、软件工程、电子信息、网络空间安全","1.中共党员；\n2.熟悉网络信息安全相关法律法规；\n3.了解网络信息安全相关技术，拥有网络信息安全相关实践经验；\n4.熟悉数据治理、人工智能等相关理论知识；\n5.了解数据分析、数据模型设计等相关知识；\n6.了解数据指标研制及评估等工作；\n7.能适应夜间、节假日值班工作。","京外",null,"010-68587410"]
[6,"中国科技馆","科研管理部\n数据统计与研究岗","1.搜集、整理、分析、研究国内外科普场馆相关数据信息、现代科技馆体系及全国免费开放科技馆数据信息；\n2.开展免费开放补助资金测算工作；\n3.组织开展科技馆免费开放绩效考核评估；\n4.组织开展调查研究，撰写调研报告、专报，起草年度工作总结报告；\n5.组织开展科研项目管理等相关工作。",3,"研究生","硕士及以上","统计学、应用统计、管理科学与工程、计算机科学与技术","1.中共党员；\n2.掌握调查研究方法，具有较强的实地调查研究能力以及其他形式的调查研究能力；\n3.具有较强的写作能力和文字功底；\n4.具有良好的计算机应用能力，具备信息化管理基础；\n5.具有较强综合协调及团队合作能力，工作严谨、细致。 ","\n京外",null,"010-59041368"]
[7,"中国科技馆","展览教育中心\n科技辅导教师岗","1.负责常设展厅科学教育活动和课程的策划、开发、组织实施；                                                  2.负责科普活动室、实验室等科学教育活动、课程和培训及其相关教育资源的策划、开发、组织实施；\n3.负责科学实验、科普剧等科学表演项目的策划、开发、组织实施；              \n4.负责或协助开展有关科技馆科学教育项目、科研课题的研究与组织实施；\n5.负责或协助开展综合性科普活动项目的策划、开发、组织实施。",2,"大学本科及以上","学士及以上","本科：教育学类、设计学类、地球物理学类、考古学\n研究生：教育学（0401）、理学、科学技术史、设计学、机械工程、电子信息、中国史、考古学","1.中共党员；\n2.具备科学教育相关理论基础与经验，熟悉青少年心理认知特点和教育规律，掌握相关教育技术；\n3.具备科学教育项目及课程策划实施、展教资源开发、科研课题研究等能力与经验；\n4.性格开朗，善于沟通，语言表达能力强，具有较好的中文写作能力和英语听说能力；\n5.热爱科学教育，具有较强的综合协调及团队合作能力，服务意识强。","京内",null,"010-59041368"]
[{"$nulls":4},4,"研究生","硕士及以上",null,null,"京外",null,"010-59041368"]
[8,null,"展览设计中心\n展品设计岗","1.负责展品设计制作；\n2.负责展品样机试制；\n3.负责展品方案设计；\n4.负责展览布展施工与展品制作的监督和管理；\n5.负责展品运行保障工作；\n6.参与展览展品机械设计与制作的相关研究。",2,"大学本科及以上","学士及以上","本科：机械类、电气类、电子信息类\n研究生：机械工程、电气工程、控制科学与工程、信息与通信工程\n","1.具有较强的创造力和动手实践能力；\n2.具有一定文字功底，熟练使用本专业领域的编程、设计、制图软件及office等办公软件；\n3.具有较强的综合协调及团队合作能力，工作严谨、细致。   ","京内",null,"010-59041368"]
[{"$nulls":4},5,"研究生","硕士及以上",null,null,"京外",null,"010-59041368"]
[{"$f":"ROW()-6","v":9},null,"网络科普部\n新媒体运营与信息化开发岗","1.负责新媒体信息内容收集、审核编辑、发布维护；\n2.收集、分析和处理用户的意见和信息；\n3.制定并实施年度新媒体推广方案、预算；\n4.及时掌握科普热点，有效完成专题策划活动；\n5.参与官网、微信、微博等大型活动的创意策划执行；\n6.分析活动数据、对活动的传媒效果进行复盘总结；\n7.参与信息化项目的需求调研与分析、解决方案制定；\n8.负责业务系统的优化与调试。",2,"大学本科及以上","学士及以上","本科：新闻传播学类、计算机类、电子科学与技术\n研究生：新闻传播学、新闻与传播、软件工程、计算机科学与技术、电子科学与技术","1.具有较强的语言表达能力、沟通能力及文字功底；\n2.具有较好的英语听说读写能力；\n3.熟悉新兴网络媒体的传播特点,具有良好的网络语言敏感度,对互联网文化有较高的敏感度，有较强的创意；\n4.具有较强的综合协调及团队合作能力，工作严谨、细致。 ","京内",null,"010-59041368"]
[10,"中国科协青少年科技中心","交流处\n职员","1.参与组织国际青少年科技交流活动；                                            \n2.收集国内青少年科技教育工作需求，分析国际青少年科技教育工作现状；\n3.开展国际与国内青少年科创实践比较研究。",1,"研究生","仅限\n硕士","教育学、管理学","1.中共党员；\n2.具有较强的语言表达能力、沟通能力及文字功底；\n3.具有团队协作精神和较强的组织协调能力；\n4.英语水平达到六级以上；                   \n5.具备一定研究能力。","京外",null,"010-68513019"]
[11,"中国科协企业创新服务中心","产学研合作促进处职员","1.负责企业科协组织建设；\n2.参与产学研融合类项目策划，负责项目组织实施及管理工作；\n3.负责企业创新服务有关调研及文稿撰写，参与相关研究课题的策划及管理工作。",2,"研究生","仅限\n硕士","理论经济学、应用经济学、应用统计、管理科学与工程、工商管理学、工商管理、公共管理学、公共管理","1.中共党员；\n2.具有较强的语言表达能力、沟通能力及文字功底；\n3.具有团队协作精神和较强的组织协调能力；\n4.认真细致，勤奋敬业，具有服务意识；\n5.较强的研究能力及项目策划、组织、实施、管理能力。","京内1名；京外1名"]
[12,"中国科协农村专业技术服务中心","科普项目处\n职员","1.参与基层科普类项目的组织策划、验收管理、总结宣传等工作；\n2.组织开展基层科普国际交流；                   \n3.参与基层科普研究工作。 ",1,"研究生","硕士及以上","理学、工学、管理学、经济学","1.中共党员；\n2.具有学生工作或社团组织相关实践经验；                     3.具有较强的语言表达能力、公文写作能力；                       \n4.具有较强的创新思维能力、组织协调能力。","京外",null,"010-65006171"]
[13,null,"信息培训处\n职员","1.参与农村科普工作大数据分析，数据库管理和应用等工作； \n2.参与信息化建设项目组织策划、总结评估等工作；\n3.参与策划组织基层科技科普人才的培训、培养工作；\n4.参与面向基层推广新技术、新知识、新方法等工作。",1,"大学本科及以上","学士及以上","本科：计算机类\n研究生：计算机科学与技术、软件工程","1.中共党员；\n2.具有学生工作或社团组织相关实践经验；                         3.具有较强的语言表达能力、公文写作能力；             \n4.具有较强的创新思维能力、组织协调能力。","京内"]
[14,"中国国际科技交流中心","办公室\n职员","1.参与中心年度工作计划、工作总结等文稿起草工作；                                            \n2.参与中心办公信息化建设和宣传工作；\n3.参与中心国际科技交流项目调研工作；\n4.参与中心重大活动、重点任务服务保障等工作；\n5.协调日常行政管理工作。",1,"研究生","硕士及以上","工学、经济学、科学技术史","1.中共党员；\n2.具有较强的中英文写作能力和语言表达能力、沟通能力及文字功底，能独立完成调研报告、文稿撰写工作；\n3.具有团队协作精神和较强的组织协调能力；\n4.熟练使用办公计算机软件；\n5.大学英语六级及以上水平。","京外",null,"010-62057003"]
[15,"中国科协机关服务中心","人事处（离退休干部办公室）\n人事管理岗","1.参与单位内部岗位设置、聘任、培训、调配、奖惩等工作；\n2.参与人员招聘相关工作；\n3.参与干部职工工资福利、绩效考核、社会保险等工作；\n4.参与离退休干部日常服务工作。",1,"研究生","硕士及以上","工商管理学、工商管理、法学、数学、应用经济学、公共管理学、公共管理","1.中共党员，政治素质较高；\n2.具有较强的语言表达能力、沟通能力及文字功底；\n3.具有团队协作精神和较强的组织协调能力；\n4.工作认真细致、勤奋敬业，保密意识强；\n5.为人稳重，做事踏实；\n6.在校期间有参与学生会、团委等实践工作经验；\n7.熟练使用计算机及办公软件。","京内",null,"010-68788623；010-68788699"]
[16,null,"采购处\n采购管理岗","1.参与政府采购标准化、信息化的建设、管理、使用；\n2.参与采购合同标准化管理；\n3.参与采购项目专家库日常使用、维护管理等；\n4.参与政府采购计划及执行工作；\n5.组织实施服务类、货物类及工程类项目的采购招标等工作。  ",1,"研究生","硕士及以上","应用经济学、法学、计算机科学与技术、管理科学与工程、工商管理学、工商管理、公共管理学、公共管理","1.中共党员，政治素质较高；\n2.具有较好的语言表达能力、沟通能力及文字功底；\n3.具有团队协作精神和较强的组织协调能力；\n4.认真细致，勤奋敬业，具有服务意识和保密意识；\n5.熟悉政府采购相关的法律、规章、制度；\n6.熟练使用计算机及办公软件。","京内",null,"010-68788623；010-68788699"]
[17,"中国科协新技术开发中心有限责任公司","业务部\n战略研究岗","1.研究国际科技发展形势，开展国际科技交流领域深度研究；                                                                                   2.参与策划、组织和实施各类会议,撰写会议相关文稿，包括方案、活动总结、领导致辞稿等；\n3.综合性文稿工作，单位中长期发展规划、年度工作要点、年度工作总结、向上级部门请示报告等重要文件。",1,"研究生","仅限\n硕士","社会学、系统科学、管理科学与工程、公共管理学、公共管理、科学技术史、外国语语言文学","1.中共党员；\n2.具有较强的语言表达能力、沟通能力及文字功底；\n3.具有团队协作精神和较强的组织协调能力；\n4.认真细致，勤奋敬业，具有服务意识；\n5.具有较强的英语交流能力。","京内",null,"010-62180213"]
[18,null,"外联部\n对外联络岗","1.参与组织相关国际科技组织的会议和活动；负责在华国际会议的报批；\n2.参与国际科技组织及其他科技交流相关国际组织工作；\n3.承担大型活动口译任务，文稿专业翻译任务；\n4.策划、协调实施科技交流团组和大型外事活动；日常外事工作；\n5.为对外活动提供支持，负责文稿起草，参与多边国际谈判。",1,"研究生","仅限\n硕士","新闻传播学、新闻与传播、政治学、翻译、外国语言文学","1.中共党员；\n2.具有较强的语言表达能力、沟通能力及文字功底；\n3.具有团队协作精神和较强的组织协调能力；\n4.认真细致，勤奋敬业，具有服务意识；\n5.具有较强的英语交流能力。","京外"]
[19,"中国科学技术出版社有限公司","总编室\n编辑岗","1.负责资料查阅、采编、选题调研，稿件撰写、编辑、修改和校对等工作；\n2.协助提出组稿计划及约稿意向，建立作者群体和网络；\n3.协助责任编辑解决编校过程中出现的问题；\n4.协助对外联系，加强宣传和交流；\n5.收集并及时研究和处理作者、读者意见和反馈信息；\n6.协助开展行业研究、新媒体发展研判，创新内部管理流程及产品开发；\n7.新媒体运营视频前期策划、创意、文案、脚本编写；\n8.制作各类型营销小视频、微访谈、微电影等；\n9.负责各类新媒体短视频平台运营。",1,"研究生","硕士及以上","理学、文学","1.中共党员；\n2.具有新闻出版行业实习经验；\n3.具有较强的语言表达能力、沟通能力及文字功底；\n4.具有团队协作精神和较强的组织协调能力；\n5.认真细致，勤奋敬业，具有服务意识。","\n京外",null,"010-63581151"]
[20,"中国科学技术出版社有限公司","国际出版合作部\n版权贸易岗","1. 负责优质图书版权的引进、国际版权商的开拓、挖掘及维护。\n2. 及时向编辑部推荐适合中国市场出版的优质图书产品资讯。\n3. 负责版权引进、输出合同的起草、审核及完成社内合同签署流程。\n5. 负责国际优质图书产品线的规划、设计、研究及各项政府资助与外方出版项目的申请。\n6. 协助承办国际书展及其他与版权贸易相关的图书展销、国际交流活动。",1,"研究生","硕士及以上","外国语言文学","1.中共党员；\n2.大学英语6级水平或雅思6.5分及以上；\n3.具有较强的语言表达能力、沟通能力及文字功底；\n4.具有团队协作精神和较强的组织协调能力；\n5.认真细致，勤奋敬业，具有服务意识。","京外",null,"010-63581151"]
[21,null,"经营管理部\n经营管理岗","1.参与开展经营考核定期数据汇总、整理、分析的相关工作；                                            \n2.参与推进业绩考核相关制度建设和工作机制建立，协助相关工作推进、报告编制及会议筹备等；\n3.参与开展同行信息、TIC相关数据、业务动态收集整理定期编制形成简报等。",2,"研究生","硕士及以上","管理学、经济学","1.中共党员；\n2.具备独立思考能力，敏锐的商业洞察力，有良好的沟通协调能力和语言表达能力；\n3.爱岗敬业、责任心强。","京内",null,"010-63581151"]
["合计",{"$nulls":3},{"$f":"SUM(E5:E27)","v":39},{"$nulls":4},"京内15名；\n京外24名"]
["           京内生源考生可报考符合条件的京外生源岗位"]